Departmental Area,Entity,Payment Date,Expense type,Expense Area,Supplier Name,Payment Reference,      Invoice Distribution Amount      ,Description,Supplier Type,Expenditure Type
UK Statistics Family,Office for National Statistics,02/01/2024,End User Software And Hardware,Security Operations,SoftwareONE UK Ltd,288189,"79,741.80",Software Licenses,SME,Programme Expenditure
UK Statistics Family,Office for National Statistics,03/01/2024,Exp - Purchase Of Goods/Services - Incentive Payments,Interviewer Support,Pluxee UK Ltd,288522,"4,255.51",Survey Response Incentive Vouchers,Large,Programme Expenditure
UK Statistics Family,Office for National Statistics,03/01/2024,Exp - Purchase Of Goods/Services - Incentive Payments,Interviewer Support,Pluxee UK Ltd,288522,"1,557.93",Survey Response Incentive Vouchers,Large,Programme Expenditure
UK Statistics Family,Office for National Statistics,03/01/2024,Exp - Purchase Of Goods/Services - Incentive Payments,Interviewer Support,Pluxee UK Ltd,288522,"52,225.54",Survey Response Incentive Vouchers,Large,Programme Expenditure
UK Statistics Family,Office for National Statistics,03/01/2024,Exp - Purchase Of Goods/Services - Incentive Payments,Interviewer Support,Pluxee UK Ltd,288522,"9,599.27",Survey Response Incentive Vouchers,Large,Programme Expenditure
UK Statistics Family,Office for National Statistics,03/01/2024,Exp - Purchase Of Goods/Services - Incentive Payments,Interviewer Support,Pluxee UK Ltd,288522,"39,651.82",Survey Response Incentive Vouchers,Large,Programme Expenditure
UK Statistics Family,Office for National Statistics,03/01/2024,Other Goods And Services,Public Service Productivity Review,Pluxee UK Ltd,288522,374.68,Survey Response Incentive Vouchers,Large,Programme Expenditure
UK Statistics Family,Office for National Statistics,04/01/2024,Exp - Purchase Of Goods/Services - Contractors,Strategy And Architecture,La International,288611,"18,482.40",Information Management Services,SME,Programme Expenditure
UK Statistics Family,Office for National Statistics,04/01/2024,Exp - Purchase Of Goods/Services - Contractors,IT Applications,La International,288611,9162.36,Information Management Services,SME,Programme Expenditure
UK Statistics Family,Office for National Statistics,04/01/2024,End User Software And Hardware,CDIO UNGP,Boxxe Ltd,288615,31917.6,Software Licenses,SME,Programme Expenditure
UK Statistics Family,Office for National Statistics,04/01/2024,End User Software And Hardware,IT Operations,Boxxe Ltd,288615,"114,903.36",Software Licenses,SME,Programme Expenditure
UK Statistics Family,Office for National Statistics,05/01/2024,Exp - Purchase Of Goods/Services - IT Contractual Services,Digital Publishing,TPXimpact Scotland Limited,288684,"71,063.40",Information Management Services,SME,Programme Expenditure
UK Statistics Family,Office for National Statistics,05/01/2024,Exp - Purchase Of Goods/Services - Contractors,Testing,Parity Resources Limited,288699,"5,398.44",Information Management Services,Large,Programme Expenditure
UK Statistics Family,Office for National Statistics,05/01/2024,Exp - Purchase Of Goods/Services - Contractors,Strategy And Architecture,Parity Resources Limited,288699,9000,Information Management Services,Large,Programme Expenditure
UK Statistics Family,Office for National Statistics,05/01/2024,Exp - Purchase Of Goods/Services - Contractors,IT Applications,Parity Resources Limited,288699,"7,800.00",Information Management Services,Large,Programme Expenditure
UK Statistics Family,Office for National Statistics,05/01/2024,Exp - Purchase Of Goods/Services - Contractors,IT Operations,Parity Resources Limited,288699,"9,600.00",Information Management Services,Large,Programme Expenditure
UK Statistics Family,Office for National Statistics,05/01/2024,Exp - Short-Term Contract & Agency Staff - Full Cost,Interviewer Management FiF,Parity Resources Limited,288699,20133.24,Information Management Services,Large,Programme Expenditure
UK Statistics Family,Office for National Statistics,05/01/2024,Exp - Purchase Of Goods/Services - Field Costs,Interviewer Management FiF,Parity Resources Limited,288699,3318.67,Information Management Services,Large,Programme Expenditure
UK Statistics Family,Office for National Statistics,05/01/2024,Exp - Short-Term Contract & Agency Staff - Full Cost,Interviewer Support,Parity Resources Limited,288699,182.4,Information Management Services,Large,Programme Expenditure
UK Statistics Family,Office for National Statistics,05/01/2024,Exp - Purchase Of Goods/Services - Field Costs,Interviewer Support,Parity Resources Limited,288699,14.4,Information Management Services,Large,Programme Expenditure
UK Statistics Family,Office for National Statistics,09/01/2024,Accommodation & Building Management,Interview Management IPS,Heathrow Airport,288964,"57,995.85",Accommodation Charges,Large,Programme Expenditure
UK Statistics Family,Office for National Statistics,09/01/2024,Exp - Permanent UK Staff - PRP Voucher Payments,ONS Corporate Funds,Edenred (UK Group) Limited,288973,"62,550.00",Performance Reward Vouchers,Large,Programme Expenditure
UK Statistics Family,Office for National Statistics,09/01/2024,Exp - Purchase Of Goods/Services - IT Contractual Services,CLOUD ARCHITECTURE,Responsive Solutions Limited,288976,"36,000.00",Information Management Services,SME,Programme Expenditure
UK Statistics Family,Office for National Statistics,09/01/2024,Exp - Purchase Of Goods/Services - Contractors,CDIO UNGP,Parity Resources Limited,288977,9201,Information Management Services,Large,Programme Expenditure
UK Statistics Family,Office for National Statistics,09/01/2024,Exp - Purchase Of Goods/Services - Contractors,Strategy And Architecture,Parity Resources Limited,288977,18526.22,Information Management Services,Large,Programme Expenditure
UK Statistics Family,Office for National Statistics,10/01/2024,Exp - Purchase Of Goods/Services - Postage,REPROGRAPHICS,Royal Mail Group Ltd,289074,50095.72,Postage,Large,Programme Expenditure
UK Statistics Family,Office for National Statistics,10/01/2024,Exp - Purchase Of Goods/Services - Postage,Survey Processing Centre,Royal Mail Group Ltd,289074,396.2,Postage,Large,Programme Expenditure
UK Statistics Family,Office for National Statistics,12/01/2024,Exp - Purchase Of Goods/Services - Contractors,INTEGRATED DATA STRATEGY AND DELIVERY,Malikshaw Interim & Executive,289246,"27,846.82",Information Management Services,SME,Programme Expenditure
UK Statistics Family,Office for National Statistics,15/01/2024,Exp - Purchase Of Goods/Services - Contractors,Security Advisory,Parity Resources Limited,289340,13531.5,Information Management Services,Large,Programme Expenditure
UK Statistics Family,Office for National Statistics,15/01/2024,Exp - Purchase Of Goods/Services - Contractors,CDIO UNGP,Parity Resources Limited,289340,4600.5,Information Management Services,Large,Programme Expenditure
UK Statistics Family,Office for National Statistics,15/01/2024,Exp - Purchase Of Goods/Services - Contractors,Strategy And Architecture,Parity Resources Limited,289340,"5,894.70",Information Management Services,Large,Programme Expenditure
UK Statistics Family,Office for National Statistics,15/01/2024,Exp - Purchase Of Goods/Services - Contractors,IT Operations,Parity Resources Limited,289340,"1,920.00",Information Management Services,Large,Programme Expenditure
UK Statistics Family,Office for National Statistics,15/01/2024,Exp - Short-Term Contract & Agency Staff - Full Cost,Interviewer Management FiF,Parity Resources Limited,289340,"11,352.40",Information Management Services,Large,Programme Expenditure
UK Statistics Family,Office for National Statistics,15/01/2024,Exp - Purchase Of Goods/Services - Field Costs,Interviewer Management FiF,Parity Resources Limited,289340,1781.99,Information Management Services,Large,Programme Expenditure
UK Statistics Family,Office for National Statistics,16/01/2024,Training & Development,Policy Secretariat,Rss Conference,289504,27180.75,Corporate Membership,Large,Programme Expenditure
UK Statistics Family,Office for National Statistics,16/01/2024,Exp - Print & Post,Interviewer Support,APS Group,289510,"39,008.82",Print and Post Services,Large,Programme Expenditure
UK Statistics Family,Office for National Statistics,16/01/2024,Exp - Purchase Of Goods/Services - Incentive Payments,Interviewer Support,Pluxee UK Ltd,289524,443.7,Survey Response Incentive Vouchers,Large,Programme Expenditure
UK Statistics Family,Office for National Statistics,16/01/2024,Exp - Purchase Of Goods/Services - Incentive Payments,Interviewer Support,Pluxee UK Ltd,289524,25212.26,Survey Response Incentive Vouchers,Large,Programme Expenditure
UK Statistics Family,Office for National Statistics,16/01/2024,Exp - Purchase Of Goods/Services - Incentive Payments,Interviewer Support,Pluxee UK Ltd,289524,"4,210.31",Survey Response Incentive Vouchers,Large,Programme Expenditure
UK Statistics Family,Office for National Statistics,16/01/2024,Exp - Purchase Of Goods/Services - Incentive Payments,Interviewer Support,Pluxee UK Ltd,289524,"52,309.99",Survey Response Incentive Vouchers,Large,Programme Expenditure
UK Statistics Family,Office for National Statistics,17/01/2024,Capital Major Works >25K,Property Newport,Vinci Construction UK Limited,289672,"48,670.37",Facilities Mangement Services,Large,Programme Expenditure
UK Statistics Family,Office for National Statistics,17/01/2024,Major Works Over 25K,Property Newport,Vinci Construction UK Limited,289672,"32,173.50",Facilities Mangement Services,Large,Programme Expenditure
UK Statistics Family,Office for National Statistics,18/01/2024,Exp - Purchase Of Goods/Services - IT Contractual Services,Digital Delivery,University of Durham,289771,"72,288.00",Statistical Services,Large,Programme Expenditure
UK Statistics Family,Office for National Statistics,18/01/2024,Exp - Purchase Of Goods/Services - Postage,Survey Processing Centre,DHL Parcel Ltd,289772,"32,446.72",Postage,Large,Programme Expenditure
UK Statistics Family,Office for National Statistics,18/01/2024,Exp - Purchase Of Goods/Services - Contractors,Security Advisory,Certes Computing Ltd,289774,"10,758.40",Information Management Services,SME,Programme Expenditure
UK Statistics Family,Office for National Statistics,18/01/2024,Exp - Purchase Of Goods/Services - Contractors,CDIO UNGP,Certes Computing Ltd,289774,"8,625.94",Information Management Services,SME,Programme Expenditure
UK Statistics Family,Office for National Statistics,18/01/2024,Exp - Purchase Of Goods/Services - Contractors,IT Applications,Certes Computing Ltd,289774,"29,981.31",Information Management Services,SME,Programme Expenditure
UK Statistics Family,Office for National Statistics,18/01/2024,"ICT Outsourcing, Maintenance And Support",IT Operations,Bytes Software Services Ltd,289776,"49,349.69",Software Licenses,Large,Programme Expenditure
UK Statistics Family,Office for National Statistics,18/01/2024,End User Software And Hardware,IT Operations,Computacenter (Uk) Limited,289778,"23,122.26",Computers and Peripherals,Large,Programme Expenditure
UK Statistics Family,Office for National Statistics,18/01/2024,End User Software And Hardware,IT Operations,Computacenter (Uk) Limited,289778,"14,417.47",Computers and Peripherals,Large,Programme Expenditure
UK Statistics Family,Office for National Statistics,18/01/2024,"ICT Outsourcing, Maintenance And Support",Researcher Support And Data Access ,Boxxe Ltd,289786,"49,484.53",Software Licenses,SME,Programme Expenditure
UK Statistics Family,Office for National Statistics,18/01/2024,End User Software And Hardware,IT Operations,Akhter Computers PLC,289789,"283,399.20",Software Licenses,SME,Programme Expenditure
UK Statistics Family,Office for National Statistics,18/01/2024,Exp - Purchase Of Goods/Services - Incentive Payments,Interviewer Support,Pluxee UK Ltd,289791,"1,329.61",Survey Response Incentive Vouchers,Large,Programme Expenditure
UK Statistics Family,Office for National Statistics,18/01/2024,Exp - Purchase Of Goods/Services - Incentive Payments,Interviewer Support,Pluxee UK Ltd,289791,"25,738.62",Survey Response Incentive Vouchers,Large,Programme Expenditure
UK Statistics Family,Office for National Statistics,19/01/2024,Major Works Over 25K,Property Titchfield,Vinci Construction UK Limited,289857,"109,403.64",Facilities Mangement Services,Large,Programme Expenditure
UK Statistics Family,Office for National Statistics,19/01/2024,Exp - Purchase Of Goods/Services - Contractors,INTEGRATED DATA STRATEGY AND DELIVERY,Malikshaw Interim & Executive,289864,"8,938.49",Information Management Services,SME,Programme Expenditure
UK Statistics Family,Office for National Statistics,19/01/2024,Exp - Short-Term Contract & Agency Staff - Full Cost,Census & Soc Methodology Dd,Malikshaw Interim & Executive,289864,"4,243.31",Information Management Services,SME,Programme Expenditure
UK Statistics Family,Office for National Statistics,19/01/2024,Exp - Purchase Of Goods/Services - Contractors,CDIO UNGP,Malikshaw Interim & Executive,289864,"10,140.00",Information Management Services,SME,Programme Expenditure
UK Statistics Family,Office for National Statistics,19/01/2024,Exp - Purchase Of Goods/Services - Contractors,DATA ENGINEERING OPERATIONS AND DELIVERY,Malikshaw Interim & Executive,289864,"14,457.60",Information Management Services,SME,Programme Expenditure
UK Statistics Family,Office for National Statistics,19/01/2024,EXP - PURCHASE OF GOODS/SERVICES - DATA ACQUISITION,Prices Division,Verian,289865,243037.2,Statistical Services,SME,Programme Expenditure
UK Statistics Family,Office for National Statistics,19/01/2024,Surveys,Crime Income And Wealth,Panlogic UK,289871,"30,000.00",Information Management Services,SME,Programme Expenditure
UK Statistics Family,Office for National Statistics,19/01/2024,Exp - Purchase Of Goods/Services - Incentive Payments,Interviewer Support,Pluxee UK Ltd,289873,680.34,Survey Response Incentive Vouchers,Large,Programme Expenditure
UK Statistics Family,Office for National Statistics,19/01/2024,Exp - Purchase Of Goods/Services - Incentive Payments,Interviewer Support,Pluxee UK Ltd,289873,769.09,Survey Response Incentive Vouchers,Large,Programme Expenditure
UK Statistics Family,Office for National Statistics,19/01/2024,Exp - Purchase Of Goods/Services - Incentive Payments,Interviewer Support,Pluxee UK Ltd,289873,"26,918.01",Survey Response Incentive Vouchers,Large,Programme Expenditure
UK Statistics Family,Office for National Statistics,19/01/2024,Exp - Purchase Of Goods/Services - Incentive Payments,Interviewer Support,Pluxee UK Ltd,289873,"3,037.06",Survey Response Incentive Vouchers,Large,Programme Expenditure
UK Statistics Family,Office for National Statistics,19/01/2024,Exp - Purchase Of Goods/Services - Incentive Payments,Interviewer Support,Pluxee UK Ltd,289873,"12,620.80",Survey Response Incentive Vouchers,Large,Programme Expenditure
UK Statistics Family,Office for National Statistics,22/01/2024,Specialist User Software And Hardware,IT Operations,Scc,289963,"2,151,663.45",Software Licenses,Large,Programme Expenditure
UK Statistics Family,Office for National Statistics,22/01/2024,Exp - Purchase Of Goods And Services Consultants,Internal Audit,Ernst & Young LLP,289965,"67,680.00",Consultancy Services,Large,Programme Expenditure
UK Statistics Family,Office for National Statistics,22/01/2024,Exp - Purchase Of Goods/Services - Postage,REPROGRAPHICS,Royal Mail Group Ltd,289966,"136,629.23",Postage,Large,Programme Expenditure
UK Statistics Family,Office for National Statistics,22/01/2024,Specialist User Software And Hardware,IT Operations,Hootsuite,289975,"33,600.00",Software Licenses,SME,Programme Expenditure
UK Statistics Family,Office for National Statistics,23/01/2024,"ICT Outsourcing, Maintenance And Support",IT Operations,Scc,290151,"155,520.00",Software Licenses,Large,Programme Expenditure
UK Statistics Family,Office for National Statistics,23/01/2024,Exp - Purchase Of Goods/Services - Other Travel,Corporate Center,Corporate Travel Management ,290153,"29,807.80",Travel and Accommodation,SME,Programme Expenditure
UK Statistics Family,Office for National Statistics,23/01/2024,IT (Owned) At Cost - Additions,IT Operations,Computacenter (Uk) Limited,290155,123653.76,Computer Hardware,Large,Programme Expenditure
UK Statistics Family,Office for National Statistics,23/01/2024,Exp - Purchase Of Goods/Services - IT Contractual Services,Digital Delivery,ANDigital Limited,290161,37440,Information Management Services,large,Programme Expenditure
UK Statistics Family,Office for National Statistics,23/01/2024,Exp - Purchase Of Goods/Services - IT Contractual Services,Digital Delivery,ANDigital Limited,290161,"126,096.00",Information Management Services,large,Programme Expenditure
UK Statistics Family,Office for National Statistics,24/01/2024,Exp - Purchase Of Goods/Services - Other Travel,Corporate Center,Corporate Travel Management ,290300,"44,537.20",Travel and Accommodation,SME,Programme Expenditure
UK Statistics Family,Office for National Statistics,24/01/2024,Other Professional Services,Policy Secretariat,Government Legal Department,290308,"1,827.48",Legal Services,Large,Programme Expenditure
UK Statistics Family,Office for National Statistics,24/01/2024,Other Professional Services,Policy Secretariat,Government Legal Department,290308,"10,377.60",Legal Services,Large,Programme Expenditure
UK Statistics Family,Office for National Statistics,24/01/2024,Other Professional Services,Policy Secretariat,Government Legal Department,290308,"22,219.54",Legal Services,Large,Programme Expenditure
UK Statistics Family,Office for National Statistics,25/01/2024,Hosting,IT Operations,Crown Hosting Data Centres Limited,290428,"40,491.72",Information Management Services,SME,Programme Expenditure
UK Statistics Family,Office for National Statistics,25/01/2024,Hosting,IT Operations,Eficode UK Limited,290429,"50,675.70",Information Management Services,SME,Programme Expenditure
UK Statistics Family,Office for National Statistics,25/01/2024,Exp - Purchase Of Goods/Services - IT Contractual Services,IT Operations,Ibm United Kingdom Ltd,290432,"2,539.68",Information Management Services,Large,Programme Expenditure
UK Statistics Family,Office for National Statistics,25/01/2024,Exp - Purchase Of Goods/Services - IT Contractual Services,IT Operations,Ibm United Kingdom Ltd,290432,"103,165.44",Information Management Services,Large,Programme Expenditure
UK Statistics Family,Office for National Statistics,25/01/2024,Exp - Purchase Of Goods/Services - Postage,REPROGRAPHICS,Royal Mail Group Ltd,290436,"40,221.04",Postage,Large,Programme Expenditure
UK Statistics Family,Office for National Statistics,25/01/2024,Exp - Print & Post,Survey Processing Centre,APS Group,290437,"33,130.98",Print and Post Services,Large,Programme Expenditure
UK Statistics Family,Office for National Statistics,25/01/2024,End User Software And Hardware,IT Operations,Total Computers Networks Ltd,290438,"482,698.73",Software Licenses,Large,Programme Expenditure
UK Statistics Family,Office for National Statistics,25/01/2024,Exp - Purchase Of Goods And Services Consultants,INTEGRATED DATA STRATEGY AND DELIVERY,Deloitte,290442,"370,392.00",Consultancy Services,Large,Programme Expenditure
UK Statistics Family,Office for National Statistics,25/01/2024,Exp - Purchase Of Goods/Services - Incentive Payments,Interviewer Support,Pluxee UK Ltd,290443,"2,521.46",Survey Response Incentive Vouchers,Large,Programme Expenditure
UK Statistics Family,Office for National Statistics,25/01/2024,Exp - Purchase Of Goods/Services - Incentive Payments,Interviewer Support,Pluxee UK Ltd,290443,"2,651.80",Survey Response Incentive Vouchers,Large,Programme Expenditure
UK Statistics Family,Office for National Statistics,25/01/2024,Exp - Purchase Of Goods/Services - Incentive Payments,Social Survey Transformation Newport,Pluxee UK Ltd,290443,"5,003.58",Survey Response Incentive Vouchers,Large,Programme Expenditure
UK Statistics Family,Office for National Statistics,25/01/2024,Exp - Purchase Of Goods/Services - Incentive Payments,Interviewer Support,Pluxee UK Ltd,290443,5020.51,Survey Response Incentive Vouchers,Large,Programme Expenditure
UK Statistics Family,Office for National Statistics,25/01/2024,Exp - Purchase Of Goods/Services - Incentive Payments,Interviewer Support,Pluxee UK Ltd,290443,"18,186.46",Survey Response Incentive Vouchers,Large,Programme Expenditure
UK Statistics Family,Office for National Statistics,25/01/2024,Other Goods And Services,Public Service Productivity Review,Pluxee UK Ltd,290443,49.3,Survey Response Incentive Vouchers,Large,Programme Expenditure
UK Statistics Family,Office for National Statistics,10/01/2024,Exp - Purchase Of Goods/Servcies - Stationery,Lodgecard,Royal Bank of Scotland,30004425,"2,181.14",Multiple Procurement Card Purchases  - Stationery ,Large,Programme Expenditure
UK Statistics Family,Office for National Statistics,10/01/2024,Other Goods And Services,GPC,Royal Bank of Scotland,30004425,"32,534.06",Multiple Procurement Card Purchases - other goods/services  ,Large,Programme Expenditure
UK Statistics Family,Office for National Statistics,10/01/2024,Exp - Purchase Of Goods/Services - Other Travel,Car Hire,Royal Bank of Scotland,30004425,20181.2,Multiple Procurement Card Purchases - Vehicle Hire  ,Large,Programme Expenditure
UK Statistics Family,Office for National Statistics,15/01/2024,Surveys,HALE,African Institute for Mathematical Sciences,30004429,"59,106.84",Collaborative Research Grant Funding,Large,Programme Expenditure
UK Statistics Family,Office for National Statistics,22/01/2024,Electricity,Property Titchfield,Edf Energy,30004440,"30,012.71",Utility Costs,Large,Programme Expenditure
UK Statistics Family,Office for National Statistics,22/01/2024,Electricity,Property Newport,Edf Energy,30004441,"35,263.26",Utility Costs,Large,Programme Expenditure
UK Statistics Family,Office for National Statistics,30/01/2024,Exp - Purchase Of Goods/Services - Postage,REPROGRAPHICS,Royal Mail Group Ltd,30004455,44791.37,Postage,Large,Programme Expenditure
UK Statistics Family,Office for National Statistics,30/01/2024,Major Works Over 25K,Property Titchfield,Vinci Construction UK Limited,30004461,"50,324.35",Facilities Mangement Services,Large,Programme Expenditure
UK Statistics Family,Office for National Statistics,31/01/2024,"ICT Outsourcing, Maintenance And Support",Interviewer Support,Totalmobile Ltd,30004470,"127,170.00",Software Licenses,SME,Programme Expenditure
UK Statistics Family,Office for National Statistics,31/01/2024,Hosting,CLOUD ARCHITECTURE,Amazon Web Services Inc,30004471,"348,776.24",Information Management Services,Large,Programme Expenditure
UK Statistics Family,Office for National Statistics,31/01/2024,Exp - Purchase Of Goods/Services - IT Contractual Services,CLOUD ARCHITECTURE,CTS (Cloud Technology Solutions Ltd),30004472,"50,184.00",Information Management Services,Large,Programme Expenditure
UK Statistics Family,Office for National Statistics,31/01/2024,Hosting,CLOUD ARCHITECTURE,CTS (Cloud Technology Solutions Ltd),30004472,"123,240.46",Information Management Services,Large,Programme Expenditure
UK Statistics Family,Office for National Statistics,31/01/2024,Exp - Purchase Of Goods/Services - IT Contractual Services,CDIO UNGP,CTS (Cloud Technology Solutions Ltd),30004472,"19,633.74",Information Management Services,Large,Programme Expenditure
UK Statistics Family,Office for National Statistics,31/01/2024,Exp - Purchase Of Goods/Services - IT Contractual Services,CDIO UNGP,CTS (Cloud Technology Solutions Ltd),30004472,220916.8,Information Management Services,Large,Programme Expenditure
UK Statistics Family,Office for National Statistics,31/01/2024,Exp - Purchase Of Goods/Services - IT Contractual Services,DATA ENGINEERING OPERATIONS AND DELIVERY,CTS (Cloud Technology Solutions Ltd),30004472,"36,842.40",Information Management Services,Large,Programme Expenditure
UK Statistics Family,Office for National Statistics,31/01/2024,Surveys,Crime Statistics,Verian,30004473,"961,469.20",Statistical Services,SME,Programme Expenditure
,,,,,,,"8,344,900.94",,,
